bitfinex/quotes_SOLUSD_20240922
["timestamp","ask_amount","ask_price","bid_price","bid_amount"]
[1726997827807,6.8326,146.36,146.32,23.9192]
[1726997829509,6.8318,146.38,146.33,30.861364]
[1726997829895,6.8311,146.39,146.34,6.8332]
[1726997835217,6.8315,146.38,146.34,6.8332]
[1726997846128,0.2504336,146.42,146.36,0.12549]
[1726997846335,7.0801336,146.42,146.37,6.8316]
[1726997846629,7.0801336,146.42,146.37,24.027864]
[1726997846830,0.2504336,146.42,146.38,6.8312]
[1726997847131,0.2504336,146.42,146.39,6.8308]
[1726997848200,0.2504336,146.42,146.39,0.12549]
[1726997848404,0.2504336,146.42,146.39,24.027864]
[1726997853317,0.2504336,146.42,146.39,0.12549]
[1726997860428,1.95789112,146.42,146.37,6.8318]
[1726997860636,1.95789112,146.42,146.35,23.9144]
[1726997860637,0.2504336,146.42,146.35,23.9144]
[1726997860933,6.831,146.39,146.35,23.9144]
[1726997861140,6.8315,146.38,146.34,6.8333]
[1726997861834,8.540142,146.37,146.32,23.919]
[1726997862149,6.833,146.35,146.3,6.8348]
[1726997863016,6.833,146.35,146.31,6.8346]
[1726997863314,6.8325,146.36,146.31,6.8346]
[1726997864424,6.8331,146.35,146.3,50.862964]
[1726997864640,6.8331,146.35,146.3,44.027864]
[1726997865529,6.8325,146.36,146.31,6.8347]
[1726997869016,6.8339,146.33,146.3,44.027864]
[1726997869217,6.8333,146.35,146.3,50.862964]
[1726997869738,6.5551,146.34,146.26,17.3426336]
[1726997869938,1.70881584,146.33,146.26,17.3426336]
[1726997870156,6.8362,146.28,146.26,0.2504336]
[1726997870647,6.8366,146.27,146.26,0.2504336]
[1726997883049,17.0884,146.3,146.26,0.2504336]
[1726997883050,6.8356,146.3,146.26,0.2504336]
[1726997884126,6.8356,146.3,146.26,7.0875336]
[1726997884460,6.8344,146.32,146.27,6.8365]
[1726997886530,6.8344,146.32,146.28,6.836]
[1726997886846,16.0029,146.36,146.3,6.835]
[1726997887052,6.5304,146.38,146.3,6.835]
[1726997888357,6.8334,146.34,146.3,6.835]
[1726997894636,17.078,146.39,146.31,6.8347]
[1726997894840,16.0029,146.4,146.32,6.8339]
[1726997895141,6.8325,146.36,146.31,23.9207]
[1726997897353,6.8329,146.35,146.31,23.9207]
[1726997897941,33.0798,146.4,146.31,23.9207]
[1726997899232,6.8329,146.35,146.31,23.9207]
[1726997899435,6.8325,146.36,146.31,23.9207]
[1726997904245,6.8329,146.35,146.31,23.9207]
[1726997908364,6.8334,146.34,146.31,17.086]
[1726997910160,6.833,146.35,146.31,17.086]
[1726997914065,6.833,146.35,146.31,23.9207]
[1726997914744,6.8325,146.36,146.31,23.9207]
[1726997916462,6.8325,146.36,146.32,30.736574]
[1726997916979,6.8319,146.38,146.33,6.8337]
[1726997917258,6.8322,146.37,146.33,6.8337]
[1726997919752,6.8322,146.37,146.32,30.736574]
[1726997923452,6.8322,146.37,146.26,1.96130212]
[1726997923453,0.12549,146.34,146.26,0.2504336]
[1726997923647,17.0831,146.35,146.26,7.0870336]
[1726997923648,6.8349,146.31,146.26,7.0870336]
[1726997923846,1.70898385,146.3,146.26,0.2504336]
[1726997924064,6.8362,146.28,146.26,0.2504336]
[1726997928581,17.0852,146.33,146.26,0.2504336]
[1726997929270,6.8353,146.3,146.26,0.2504336]
[1726997929574,8.54521909,146.29,146.26,0.2504336]
[1726997929878,17.0852,146.33,146.26,0.2504336]
[1726997929879,8.54545356,146.28,146.26,0.2504336]
[1726997930056,6.8362,146.28,146.26,0.2504336]
[1726997932259,6.8366,146.27,146.26,0.2504336]
[1726997940483,6.8362,146.28,146.26,0.2504336]
[1726997942961,6.8348,146.31,146.26,7.0872336]
[1726997943772,6.8353,146.3,146.26,7.0872336]
[1726997944967,1.70896857,146.33,146.26,0.2504336]
[1726997945398,6.8351,146.31,146.26,7.0874336]
[1726997946389,6.8352,146.3,146.26,7.0874336]
[1726997948396,6.8352,146.3,146.26,22.1716336]
[1726997948787,6.8347,146.32,146.28,6.8361]
[1726997948977,6.8339,146.33,146.28,6.8361]
[1726997949183,6.8335,146.34,146.29,6.8356]
[1726997949502,1.70859337,146.36,146.29,6.8356]
[1726997950386,6.8339,146.33,146.29,6.8356]
[1726997953473,6.8339,146.33,146.28,23.9258]
[1726997957574,6.8349,146.31,146.28,20.0]
[1726997958096,6.8334,146.34,146.29,17.0885]
[1726997958400,6.8334,146.34,146.29,23.9241]
[1726997959193,6.8338,146.33,146.29,23.9241]
[1726997960504,17.0794,146.38,146.3,6.8351]
[1726997961496,6.8329,146.35,146.3,6.8351]
[1726997962999,6.8329,146.35,146.31,6.8348]
[1726997963492,6.8334,146.34,146.31,15.0636]
[1726997963671,17.0794,146.38,146.31,15.0636]
[1726997964089,6.8331,146.35,146.31,15.0636]
[1726997964487,6.832,146.37,146.32,6.8339]
[1726997964691,6.832,146.37,146.32,13.1462]
[1726997965480,6.832,146.37,146.33,6.8338]
[1726997966083,6.832,146.37,146.32,13.1465]
[1726997966606,6.833,146.35,146.32,6.3123]
[1726997968199,1.70852882,146.34,146.31,15.0636]
[1726997968497,6.8343,146.32,146.31,15.0636]
[1726997968876,6.8348,146.31,146.28,26.3123]
[1726997969077,6.8348,146.31,146.28,6.3123]
[1726997970184,8.54438822,146.3,146.26,15.3140336]
[1726997970384,1.70907704,146.29,146.26,15.3140336]
[1726997970796,1.70907704,146.29,146.27,20.0]
[1726997971982,6.8354,146.3,146.27,20.0]
[1726997972384,6.8349,146.31,146.27,20.0]
[1726997974301,6.8353,146.3,146.27,20.0]
[1726997980010,6.8348,146.31,146.27,20.0]
[1726997980582,6.8348,146.31,146.27,26.8365]
[1726997982717,6.8348,146.31,146.27,6.8365]
[1726997994822,1.70895493,146.3,146.27,20.0]
[1726997996810,6.8348,146.31,146.27,20.0]
[1726997997124,1.70901233,146.3,146.27,20.0]
[1726997998520,6.8348,146.31,146.27,20.0]
[1726998000019,8.54451066,146.3,146.27,20.0]
[1726998000228,8.54498534,146.29,146.27,20.0]
[1726998000415,6.8358,146.29,146.27,20.0]
[1726998001011,6.8358,146.29,146.26,15.3140336]
[1726998001317,8.54541855,146.28,146.26,0.2504336]
[1726998001520,1.70935955,146.27,146.26,0.2504336]
[1726998001722,6.8362,146.28,146.26,0.2504336]
[1726998003041,6.8358,146.29,146.26,0.2504336]
[1726998005045,6.8352,146.31,146.26,7.0874336]
[1726998006104,1.70903813,146.3,146.26,7.0874336]
[1726998006440,6.8352,146.31,146.26,7.0874336]
[1726998008433,6.8353,146.3,146.26,0.2504336]
[1726998010527,1.70916324,146.29,146.26,0.2504336]
[1726998010729,6.8353,146.3,146.26,7.0874336]
[1726998012329,1.70912449,146.29,146.26,0.2504336]
[1726998016829,6.8353,146.3,146.26,0.2504336]
[1726998017428,8.54486174,146.29,146.26,0.2504336]
[1726998017633,1.70920825,146.28,146.26,0.2504336]
[1726998018821,6.8366,146.27,146.26,0.2504336]
[1726998019758,30.613484,146.27,146.26,0.2504336]
[1726998019959,32.32335175,146.27,146.26,0.2504336]
[1726998021941,6.8385,146.23,146.22,0.2504336]
[1726998029153,8.54870736,146.23,146.22,0.2504336]
[1726998030823,6.8385,146.23,146.22,0.2504336]
[1726998031047,8.5486755,146.23,146.22,0.2504336]
[1726998033853,6.8385,146.23,146.22,0.2504336]
[1726998034856,8.54858137,146.23,146.22,0.2504336]
[1726998035841,6.8385,146.23,146.22,0.2504336]
[1726998039432,6.8413,146.17,146.16,0.4116725]
[1726998052334,8.55219631,146.17,146.16,0.4116725]
[1726998053051,6.8413,146.17,146.16,0.4116725]
[1726998053255,8.55219862,146.17,146.16,0.4116725]
[1726998053941,30.869164,146.17,146.16,0.4116725]
[1726998060571,6.8427,146.14,146.13,0.2504336]
[1726998061778,6.8426,146.15,146.13,0.2504336]
[1726998065360,1.71092484,146.14,146.13,0.2504336]
[1726998067676,6.8426,146.15,146.13,0.2504336]
[1726998071074,6.8419,146.16,146.13,0.2504336]
[1726998071251,6.8414,146.17,146.13,7.0932336]
[1726998071456,6.8418,146.16,146.13,0.2504336]
[1726998072772,6.8414,146.17,146.13,0.2504336]
[1726998073361,6.8409,146.18,146.13,7.0934336]
[1726998073557,6.8404,146.19,146.14,26.8426]
[1726998073870,17.0956,146.24,146.16,23.9461]
[1726998074056,6.8398,146.21,146.16,23.9461]
[1726998074663,6.84,146.2,146.16,23.9461]
[1726998075757,6.84,146.2,146.16,17.1044]
[1726998078088,6.8396,146.21,146.16,17.1044]
[1726998078267,6.8391,146.22,146.17,15.2573]
[1726998079084,6.8391,146.22,146.17,22.0985]
[1726998079784,24.027864,146.25,146.17,22.0985]
[1726998079785,6.8395,146.21,146.17,22.0985]
[1726998080887,6.8391,146.22,146.17,22.0985]
[1726998081363,1.71017382,146.21,146.17,15.2573]
[1726998081560,6.8403,146.2,146.17,15.2573]
[1726998081765,1.71038852,146.19,146.17,15.2573]
[1726998082171,6.8408,146.18,146.17,15.2573]
[1726998084556,6.8408,146.18,146.16,6.2841]
[1726998086682,6.8408,146.18,146.14,22.1]
[1726998086887,1.71047032,146.17,146.14,22.1]
[1726998087689,6.8408,146.18,146.14,22.1]
[1726998089573,1.71045287,146.17,146.14,15.2573]
[1726998089902,6.8408,146.18,146.14,22.0999]
[1726998090184,1.71055517,146.17,146.14,15.2573]
[1726998091877,1.71055517,146.17,146.13,0.2504336]
[1726998092082,1.71055517,146.17,145.95,0.2]
[1726998092083,57.10118,145.98,145.95,0.2]
[1726998092288,57.10118,145.98,145.86,43.91325965]
[1726998092289,23.776884,145.98,145.86,0.2504336]
[1726998092596,23.776884,145.98,145.95,0.2504336]
[1726998092597,6.8511,145.96,145.95,0.2504336]
[1726998092774,53.76166161,146.02,145.95,0.2504336]
[1726998092775,3.76166161,146.02,145.95,0.2504336]
[1726998092977,17.1187,146.04,145.95,0.2504336]
[1726998093193,6.8499,145.99,145.95,0.2504336]
[1726998093406,1.71299573,145.98,145.95,0.2504336]
[1726998093692,30.0,145.96,145.95,0.2504336]
[1726998094084,30.0,145.96,145.95,0.3179903]
[1726998095401,53.776884,145.96,145.95,0.3179903]
[1726998095578,30.0,145.96,145.95,0.3179903]
[1726998096771,24.027864,146.02,145.95,0.3179903]
[1726998096971,27.08545632,146.02,145.95,0.3179903]
[1726998097186,32.58876547,146.02,145.95,0.3179903]
[1726998097404,8.56090147,146.02,145.95,0.3179903]
[1726998098369,8.56090147,146.02,145.9,0.4923295]
[1726998098370,15.8823,145.99,145.9,0.4923295]
[1726998098673,0.25098,145.97,145.9,0.4923295]
[1726998098894,0.25098,145.95,145.9,0.4923295]
[1726998099097,8.566034,145.94,145.9,0.4923295]
[1726998099273,6.8522,145.94,145.9,0.4923295]
[1726998099676,6.8526,145.93,145.9,0.4923295]
[1726998100484,1.71383242,145.92,145.9,0.4923295]
[1726998100973,6.8526,145.93,145.9,0.4923295]
[1726998101173,1.71383061,145.92,145.9,0.4923295]
[1726998101696,6.8526,145.93,145.9,0.4923295]
[1726998102204,8.81671121,145.95,145.9,0.4923295]
[1726998102371,1.71363242,145.95,145.9,0.4923295]
[1726998102876,336.90395164,145.95,145.9,0.4923295]
[1726998103090,6.8526,145.93,145.9,0.4923295]
[1726998103295,341.30156612,145.95,145.9,0.4923295]
[1726998103478,285.48887372,145.94,145.9,0.4923295]
[1726998103880,24.027864,145.93,145.9,0.4923295]
[1726998104308,24.027864,145.91,145.9,0.4923295]
[1726998104476,317.06936157,145.91,145.9,0.4923295]
[1726998104676,323.92286157,145.91,145.9,0.4923295]
[1726998105098,30.883664,145.86,145.85,0.3310906]
[1726998105601,233.03206907,145.88,145.85,0.3310906]
[1726998105602,239.88716907,145.88,145.85,0.3310906]
[1726998105789,233.03206907,145.88,145.85,0.3310906]
[1726998106188,24.027864,145.87,145.85,0.3310906]
[1726998106385,23.776884,145.87,145.85,0.3310906]
[1726998107695,233.03206907,145.88,145.85,0.3310906]
[1726998108302,1.71430071,145.87,145.85,0.3310906]
[1726998108884,233.03206907,145.88,145.85,0.3310906]
[1726998109097,1.71429806,145.87,145.85,0.3310906]
[1726998109300,6.8545,145.89,145.85,0.3310906]
[1726998109488,1.71429967,145.88,145.85,0.3310906]
[1726998110076,6.8545,145.89,145.85,0.3310906]
[1726998110286,25.49118038,145.88,145.85,0.3310906]
[1726998110601,23.776884,145.88,145.85,0.3310906]
[1726998112899,30.631884,145.88,145.85,0.3310906]
[1726998113103,1.7143564,145.87,145.85,0.3310906]
[1726998113518,30.631884,145.88,145.85,0.3310906]
[1726998115407,0.12549,145.92,145.85,0.3310906]
[1726998115718,24.027864,145.92,145.85,0.3310906]
[1726998116120,6.854,145.9,145.85,7.1873906]
[1726998118519,6.8536,145.91,145.86,6.8557]
[1726998122628,17.1282,145.96,145.85,17.4710906]
[1726998122798,8.56090147,145.97,145.87,17.1377]
[1726998122998,30.34757364,145.99,145.9,6.8537]
[1726998123199,18.83842656,145.99,145.9,6.8537]
[1726998124318,6.8518,145.95,145.9,6.8537]
[1726998125100,1.71344822,145.94,145.9,6.8537]
[1726998126508,6.8518,145.95,145.9,6.8535]
[1726998126710,6.8513,145.96,145.91,6.8534]
[1726998127297,6.8523,145.94,145.89,6.854]
[1726998127509,1.71351831,145.93,145.88,6.8549]
[1726998127708,0.25098,145.96,145.89,6.8543]
[1726998127916,24.027864,145.96,145.89,6.8543]
[1726998128223,6.8521,145.94,145.89,6.8543]
[1726998130017,24.027864,145.93,145.87,20.0]
[1726998130216,6.8531,145.92,145.87,6.8553]
[1726998130427,6.8531,145.92,145.88,6.8548]
[1726998131113,1.71377341,145.91,145.88,6.8548]
[1726998131708,1.71377341,145.91,145.87,6.8553]
[1726998132523,8.56727341,145.91,145.86,6.8558]
[1726998133202,30.883664,145.86,145.85,0.3310906]
[1726998135217,30.758174,145.86,145.85,0.3310906]
[1726998137524,6.8554,145.87,145.85,0.3310906]
[1726998138313,6.855,145.88,145.85,0.3310906]
[1726998140329,1.71433298,145.87,145.85,0.3310906]
[1726998141104,6.855,145.88,145.85,0.3310906]
[1726998141326,6.8545,145.89,145.85,0.3310906]
[1726998141635,1.83968392,145.91,145.85,0.3310906]
[1726998141808,6.8557,145.87,145.85,0.3310906]
[1726998144734,1.7144842,145.86,145.85,0.3310906]
[1726998145313,8.5702842,145.86,145.85,0.3310906]
[1726998145640,6.8558,145.86,145.85,0.3310906]
[1726998146014,6.8554,145.87,145.85,0.3310906]
[1726998146215,6.8558,145.86,145.85,0.3310906]
[1726998147832,0.12549,145.88,145.85,0.3310906]
[1726998148921,23.776884,145.86,145.85,0.3310906]
[1726998149627,6.8555,145.87,145.85,0.3310906]
[1726998149932,1.71434816,145.86,145.85,0.3310906]
[1726998150235,6.8558,145.86,145.85,0.3310906]
[1726998150623,6.8554,145.87,145.85,0.3310906]
[1726998153040,1.71444056,145.86,145.85,0.3310906]
[1726998153222,6.8554,145.87,145.85,0.3310906]
[1726998153423,1.71450043,145.86,145.85,0.3310906]
[1726998154145,6.8554,145.87,145.85,0.3310906]
[1726998154928,6.8554,145.87,145.85,0.197417]
[1726998155423,8.57029073,145.86,145.85,0.197417]
[1726998159549,32.34717473,145.86,145.85,0.197417]
[1726998160330,6.8572,145.83,145.82,0.3576072]
[1726998160720,6.8568,145.84,145.82,0.3576072]
[1726998160925,1.71479084,145.83,145.82,0.3576072]
[1726998161139,6.8568,145.84,145.82,0.3576072]
[1726998161344,1.71470023,145.83,145.82,0.3576072]
[1726998163329,1.71469809,145.84,145.82,0.3576072]
[1726998167755,8.57149809,145.84,145.82,0.3576072]
[1726998167958,1.71471531,145.83,145.82,0.3576072]
[1726998174230,6.8557,145.87,145.82,0.3576072]
[1726998174448,6.8541,145.9,145.85,6.8563]
[1726998174656,8.56861942,145.89,145.85,6.8563]
[1726998174858,8.56861942,145.89,145.84,6.8566]
[1726998175252,67.1308,145.94,145.45,0.5246651]
[1726998175253,7.33261713,145.51,145.45,0.5246651]
[1726998175436,54.11866275,145.88,145.45,0.5246651]
[1726998175437,50.0,145.55,145.47,65.95417675]
[1726998175637,80.897364,145.57,145.56,0.4192924]
[1726998176065,55.60884212,145.57,145.56,0.4192924]
[1726998176357,100.45764675,145.57,145.56,0.4192924]
[1726998176658,100.45764675,145.57,145.47,6.4657262]
[1726998176659,24.027864,145.53,145.47,6.4657262]
[1726998176860,23.776884,145.51,145.47,6.4657262]
[1726998177067,22.36473997,145.5,145.47,6.4657262]
[1726998177235,8.60182306,145.49,145.47,6.4657262]
[1726998177434,8.60118538,145.48,145.47,6.4657262]
[1726998177856,3.47406348,145.52,145.49,6.873]
[1726998178361,22.36276603,145.51,145.47,4.4657262]
[1726998178567,8.60106746,145.5,145.47,4.4657262]
[1726998178865,3.47406348,145.51,145.47,4.4657262]
[1726998179362,3.47406348,145.54,145.47,24.4657262]
[1726998179554,3.47406348,145.52,145.47,24.4657262]
[1726998180242,3.47406348,145.51,145.47,24.4657262]
[1726998180445,7.03889331,145.58,145.49,20.63291163]
[1726998180660,7.03889331,145.58,145.5,20.0]
[1726998180945,7.03889331,145.58,145.53,20.0]
[1726998181460,7.03889331,145.6,145.53,20.0]
[1726998181760,2.76022878,145.59,145.5,20.0]
[1726998182257,2.76022878,145.59,145.49,20.63291163]
[1726998182258,2.75756672,145.58,145.52,20.0]
[1726998182471,1.71737029,145.61,145.52,20.0]
[1726998182868,7.03889331,145.62,145.52,20.0]
[1726998183048,1.71742789,145.61,145.52,20.0]
[1726998183255,8.7563212,145.61,145.52,20.0]
[1726998183558,7.03889331,145.61,145.52,20.0]
[1726998184065,7.03889331,145.61,145.49,33.11514535]
[1726998184365,9.73805149,145.6,145.5,20.0]
[1726998184687,7.03889331,145.6,145.54,20.0]
[1726998184871,8.75613759,145.62,145.54,20.0]
[1726998185042,9.73828782,145.61,145.54,20.0]
[1726998185362,14.07778663,145.59,145.51,20.25098]
[1726998185563,7.03889331,145.6,145.51,20.25098]
[1726998185942,7.03889331,145.6,145.51,20.12549]
[1726998186166,9.66389328,145.59,145.51,20.0]
[1726998186357,7.03889331,145.59,145.51,20.0]
[1726998186540,2.62359671,145.58,145.51,20.0]
[1726998186740,7.03889331,145.58,145.52,0.12549]
[1726998187156,7.03889331,145.58,145.46,46.03590831]
[1726998187157,7.03889331,145.54,145.46,14.4648982]
[1726998187356,7.03889331,145.54,145.46,0.3871112]
[1726998187575,7.03889331,145.54,145.46,33.37676655]
[1726998187743,9.65859986,145.53,145.46,33.37676655]
[1726998187950,7.03889331,145.53,145.46,33.37676655]
[1726998188270,9.6566193,145.52,145.46,33.37676655]
[1726998188440,14.07778663,145.54,145.46,33.37676655]
[1726998188646,6.84970736,145.55,145.49,32.98965535]
[1726998188854,2.61742062,145.54,145.49,32.98965535]
[1726998189152,14.07778663,145.58,145.5,20.0]
[1726998189474,5.85804508,145.62,145.5,20.0]
[1726998189475,23.902374,145.6,145.5,20.0]
[1726998189655,2.54618496,145.59,145.47,0.25098]
[1726998189974,23.776884,145.58,145.46,20.3871112]
[1726998190361,2.54450563,145.57,145.46,20.3871112]
[1726998190980,0.25098,145.52,145.46,0.3871112]
[1726998191280,24.027864,145.47,145.46,0.3871112]
[1726998191650,6.8732,145.5,145.46,0.3871112]
[1726998191849,24.027864,145.49,145.46,0.3871112]
[1726998192054,0.25098,145.5,145.46,0.3871112]
[1726998192256,6.873,145.5,145.46,0.3871112]
[1726998192470,6.8729,145.5,145.46,0.3871112]
[1726998192676,0.25098,145.53,145.46,0.3871112]
[1726998192871,0.25098,145.51,145.46,0.3871112]
[1726998193245,8.5919853,145.5,145.46,0.3871112]
[1726998193462,23.776884,145.49,145.46,0.3871112]
[1726998193681,6.8731,145.5,145.46,0.3871112]
[1726998194047,30.650184,145.49,145.46,0.3871112]
[1726998194250,1.71909356,145.48,145.46,0.3871112]
[1726998194555,7.12368,145.51,145.46,0.3871112]
[1726998194977,23.776884,145.5,145.46,0.3871112]
[1726998195449,23.776884,145.48,145.4,20.0]
[1726998195644,30.650684,145.48,145.4,20.0]
[1726998195984,23.776884,145.49,145.4,20.0]
[1726998196278,6.8731,145.5,145.4,18.62223465]
[1726998196446,23.776884,145.45,145.37,0.653534]
[1726998196652,30.653184,145.43,145.29,32.98965535]
[1726998196852,23.776884,145.43,145.29,32.98965535]
[1726998197051,0.25098,145.42,145.28,0.0653823]
[1726998197263,0.12549,145.45,145.28,0.0653823]
[1726998197468,24.027864,145.45,145.3,32.98965535]
[1726998197983,6.8768,145.42,145.3,32.98965535]
[1726998198284,6.8768,145.42,145.26,6.0092823]
[1726998198454,6.8768,145.42,145.3,20.25098]
[1726998198658,24.027864,145.45,145.3,20.25098]
[1726998198976,24.027864,145.43,145.3,20.0]
[1726998199474,30.904464,145.43,145.3,20.0]
[1726998200458,30.904464,145.43,145.31,0.12549]
[1726998200995,7.00339,145.4,145.27,32.98965535]
[1726998201555,73.902374,145.43,145.27,32.98965535]
[1726998201556,6.877,145.42,145.27,32.98965535]
[1726998201765,23.902374,145.39,145.26,6.0092823]
[1726998201966,23.902374,145.37,145.26,6.0092823]
[1726998203057,30.781374,145.37,145.26,6.0092823]
[1726998203260,30.781374,145.37,145.27,20.0]
[1726998203469,23.902374,145.37,145.28,32.98965535]
[1726998203891,23.902374,145.37,145.27,20.0]
[1726998203892,1.84601549,145.36,145.27,20.0]
[1726998204189,50.0,145.43,145.27,20.0]
[1726998204374,6.8775,145.4,145.29,20.0]
[1726998204895,6.8771,145.41,145.29,20.0]
[1726998205373,6.8771,145.41,145.29,12.02739118]
[1726998205993,23.902374,145.4,145.29,12.02739118]
[1726998206376,23.902374,145.4,145.29,10.64884123]
[1726998206686,56.8766,145.43,145.29,10.64884123]
[1726998207212,6.8766,145.42,145.29,10.64884123]
[1726998207496,6.879,145.37,145.26,6.0092823]
[1726998208001,6.8789,145.38,145.26,6.0092823]
[1726998208303,6.879,145.37,145.26,6.0092823]
[1726998208795,23.776884,145.36,145.27,20.0]
[1726998209797,6.8804,145.34,145.27,20.0]
[1726998210099,1.72051725,145.33,145.26,6.0092823]
[1726998211207,23.776884,145.35,145.26,6.0092823]
[1726998211415,8.60128525,145.34,145.26,6.0092823]
[1726998211596,23.776884,145.35,145.26,6.0092823]
[1726998211997,0.25098,145.39,145.26,6.0092823]
[1726998212310,6.8785,145.38,145.27,20.0]
[1726998212519,23.776884,145.37,145.27,20.0]
[1726998213198,30.656084,145.37,145.27,20.0]
[1726998213396,23.776884,145.37,145.27,20.0]
[1726998213792,30.656284,145.37,145.27,20.0]
[1726998213988,23.776884,145.38,145.27,20.0]
[1726998214211,24.027864,145.39,145.27,20.0]
[1726998214727,23.776884,145.37,145.27,20.0]
[1726998215791,6.8785,145.38,145.27,20.0]
[1726998215997,6.878,145.4,145.27,20.0]
[1726998216197,50.0,145.44,145.28,20.69011833]
[1726998216410,51.72032202,145.44,145.28,20.69011833]
[1726998216719,6.8766,145.42,145.29,20.0]
[1726998217017,8.59721946,145.41,145.29,20.0]
[1726998217234,1.72011946,145.41,145.27,20.0]
[1726998217407,8.59761946,145.41,145.27,40.69011833]
[1726998218099,1.72011946,145.41,145.27,40.69011833]
[1726998219528,24.027864,145.43,145.27,40.69011833]
[1726998219819,25.74799257,145.43,145.27,20.0]
[1726998220025,6.8775,145.41,145.27,40.69011833]
[1726998220397,6.8791,145.37,145.27,20.0]
[1726998220702,23.776884,145.39,145.27,20.0]
[1726998220703,1.72030579,145.36,145.27,20.0]
[1726998220904,1.72030579,145.36,145.26,26.69940063]
[1726998221103,30.654884,145.39,145.26,26.69940063]
[1726998221322,23.776884,145.39,145.26,6.0092823]
[1726998221529,6.8799,145.35,145.26,6.0092823]
[1726998221726,23.776884,145.4,145.26,6.0092823]
[1726998221727,6.8784,145.39,145.26,6.0092823]
[1726998221898,30.654484,145.4,145.27,20.69011833]
[1726998222094,23.776884,145.4,145.28,20.0]
[1726998222325,50.0,145.44,145.28,20.0]
[1726998222522,6.8777,145.4,145.27,40.69011833]
[1726998222727,6.8782,145.39,145.28,20.69011833]
[1726998223029,6.8763,145.43,145.29,20.0]
[1726998223328,7.32596135,145.42,145.31,16.4718]
[1726998223502,6.8762,145.43,145.31,16.4718]
[1726998224209,7.32804613,145.42,145.31,16.4718]
[1726998224414,6.8762,145.43,145.31,16.4718]
[1726998224634,9.11880833,145.47,145.32,26.80341833]
[1726998224802,7.32905846,145.46,145.32,26.80341833]
[1726998224997,9.77234233,145.51,145.34,20.69011833]
[1726998224998,7.32905846,145.45,145.34,20.69011833]
[1726998225210,1.71942665,145.44,145.34,20.69011833]
[1726998225622,1.71942665,145.44,145.36,20.69011833]
[1726998226197,50.0,145.46,145.32,6.1133]
[1726998226425,7.33130488,145.45,145.32,6.1133]
[1726998226725,50.0,145.48,145.32,6.1133]
[1726998226726,15.92667966,145.44,145.32,6.1133]
[1726998226925,7.32994924,145.43,145.32,6.1133]
[1726998227107,1.71965079,145.42,145.32,6.1133]
[1726998227306,6.8762,145.43,145.32,6.1133]
[1726998227512,1.71965061,145.42,145.33,20.69011833]
[1726998228327,1.71965061,145.42,145.34,20.0]
[1726998228623,6.8751,145.46,145.35,20.69011833]
[1726998228926,7.33770685,145.45,145.35,20.69011833]
[1726998229103,9.05709643,145.44,145.33,40.69011833]
[1726998229302,1.71938958,145.44,145.33,40.69011833]
[1726998229801,7.34276341,145.43,145.33,40.69011833]
[1726998230004,1.71938958,145.44,145.33,40.69011833]
[1726998230320,7.34866702,145.43,145.33,40.69011833]
[1726998230503,6.8757,145.44,145.33,40.69011833]
[1726998231125,6.8752,145.45,145.33,40.69011833]
[1726998231501,6.8752,145.45,145.35,20.69011833]
[1726998232731,6.8771,145.41,145.32,6.1133]
[1726998233224,1.71992076,145.4,145.32,6.1133]
[1726998234612,8.59752076,145.4,145.32,6.1133]
[1726998234830,1.71983709,145.39,145.32,6.1133]
[1726998235219,6.8794,145.37,145.32,6.1133]
[1726998235532,1.72018075,145.36,145.32,6.1133]
[1726998236331,1.72017972,145.37,145.32,6.1133]
[1726998237117,1.7201785,145.36,145.32,6.1133]
[1726998237307,6.8785,145.38,145.32,6.1133]
[1726998237517,6.8771,145.41,145.32,6.1133]
[1726998237708,6.8767,145.42,145.32,6.1133]
[1726998238328,8.59681572,145.41,145.32,6.1133]
[1726998238509,6.8767,145.42,145.32,6.1133]
[1726998238906,6.8767,145.42,145.32,26.80341833]
[1726998240218,6.8772,145.41,145.32,26.80341833]
[1726998240713,1.71971417,145.4,145.32,26.80341833]
[1726998241434,6.8762,145.43,145.32,26.80341833]
[1726998241742,6.8757,145.44,145.34,20.69011833]